[Event "26th Womens ECCC 2022"]
[Site "Mayrhofen"]
[Date "2022.10.07"]
[Round "5.29"]
[White "Peglau, Charis"]
[Black "Mayrhuber, Nikola"]
[Result "1/2-1/2"]
[ECO "E16"]
[WhiteElo "1960"]
[BlackElo "2117"]
[Annotator "TA"]
[PlyCount "146"]
[EventDate "2022.10.03"]
[EventType "team-tourn"]
[EventCountry "AUT"]
[SourceTitle "playchess.com"]
[Source "ChessBase"]
[SourceQuality "1"]
[TimeControl "40/5400+30:1800+30"]

{[%evp 18,146,10,0,7,15,18,4,72,42,166,166,179,183,183,187,210,198,205,208,195,166,166,165,205,173,297,290,507,494,805,265,280,256,388,389,502,494,465,288,317,307,367,243,489,487,405,479,422,420,418,417,457,433,420,423,423,342,341,345,322,4,14,14,14,14,14,14,14,14,14,14,14,14,60,14,14,14,14,0,0,0,0,0,0,0,0,0,0,0,0,0,0,0,0,0,0,0,0,0,0,0,0,0,0,0,0,0,0,0,0,0,0,0,0,0,0,0,0,0,0,0,0,0,0,0,0,0,0,0,0]} 1. d4 {[%emt 0:00:03]} Nf6 {[%emt 0:00:07]} 2. Nf3 {[%emt 0:00:08]} e6 {[%emt 0:00:07]} 3. c4 {[%emt 0:00:10]} Bb4+ {[%emt 0:00:19]} 4. Bd2 {[%emt 0:00:10]} Qe7 {[%emt 0:00:16]} 5. e3 {[%emt 0:00:40]} O-O {[%emt 0:09:18]} 6. a3 {[%emt 0:03:53]} Bxd2+ {[%emt 0:00:49]} 7. Nbxd2 {[%emt 0:00:07]} a5 {[%emt 0:10:56]} 8. Bd3 {[%emt 0:00:53]} d6 {[%emt 0:02:16]} 9. O-O {[%emt 0:03:47]} e5 {[%emt 0:00:18]} 10. Qc2 {[%emt 0:03:28]} Bg4 {[%emt 0:02:20] E11: Bogo-Indian.} 11. Ng5 {[%emt 0:01:27]} h6 {[%emt 0:03:16]} 12. Nge4 {[%emt 0:03:25] [#]} Nfd7 $146 {[%emt 0:07:44]} (12... exd4 $11 {keeps the balance.} 13. exd4 Nc6) ({Predecessor:} 12... Nxe4 13. Nxe4 exd4 14. exd4 Nc6 15. Qc3 f5 16. Ng3 f4 17. Ne4 f3 18. Rfe1 fxg2 {0-1 (30) Kluger,H (1854)-Petzold,H (1951) Binz 2014}) 13. Ng3 {[%emt 0:08:54] White is more active.} f5 {[%emt 0:15:47]} (13... Nf6 $14) 14. Nxf5 {[%emt 0:08:03]} (14. Bxf5 Bxf5 15. Nxf5 Qf7 $16) 14... Qf6 {[%emt 0:03:41][%cal Rg4f5]} 15. Ng3 {[%emt 0:04:44]} (15. dxe5 $6 Nxe5 16. Nd4 Nxd3 17. Qxd3 Nc6 $16) 15... exd4 {[%emt 0:00:37]} 16. Nde4 {[%emt 0:00:11]} Qh4 {[%emt 0:07:58]} 17. exd4 {[%emt 0:03:04]} Nc6 {[%emt 0:00:07]} 18. Qc3 {[%emt 0:05:13]} Nf6 {[%emt 0:01:46]} 19. f3 {[%emt 0:06:39]} Bd7 {[%emt 0:01:52]} 20. Bc2 {[%emt 0:00:40]} a4 {[%emt 0:05:36]} 21. Rae1 {[%emt 0:05:56]} Qf4 {[%emt 0:08:19]} (21... d5 {is a better defense.}) 22. Qd3 {[%emt 0:02:47]} Nxe4 $2 {[%emt 0:05:41]} (22... Rae8 23. Kh1 (23. Bxa4 Nxe4 24. Nxe4 Qf7 $18) (23. Nxf6+ Qxf6 24. Rxe8 Rxe8 $18) 23... g6 24. Nxf6+ Qxf6 25. Bxa4 Kh7) 23. Rxe4 $18 {[%emt 0:01:43]} Qf6 {[%emt 0:00:48] [#]} (23... Bf5 $142 24. Rxf4 Bxd3) 24. Nh5 $2 {[%emt 0:13:21]} (24. Rg4 $1 {[%mdl 512] Strongly threatening Qh7+.} Bxg4 25. Qh7+ Kf7 26. fxg4 Qxf1+ 27. Nxf1 Nxd4 28. Bg6+ Kf6 29. Ne3) 24... Qf5 {[%emt 0:00:16]} 25. Nf4 {[%emt 0:08:49]} Qg5 {[%emt 0:07:51]} (25... Qh7 {was worth a try.} 26. g4 h5) 26. Ne6 {[%emt 0:01:38]} Bxe6 {[%emt 0:00:05]} 27. Rxe6 {[%emt 0:00:01]} Rf6 {[%emt 0:00:40]} 28. Re4 {[%emt 0:02:00] [#] Threatens to win with Rg4.} Rf4 {[%emt 0:01:23] Against Rg4} 29. Rfe1 {[%emt 0:01:43] aiming for Re6.} (29. Rxf4 Qxf4 30. Rd1 (30. Qh7+ Kf7 $16) 30... Kf8 $18) 29... Raf8 {[%emt 0:01:38]} 30. Kh1 {[%emt 0:03:45] Re6 is the strong threat.} ({Not} 30. Rxf4 Qxf4 31. Qh7+ (31. Bxa4 Nxd4 32. Qe4 b6 $16) 31... Kf7 32. Qg6+ Kg8 $18) 30... Qf6 $2 {[%emt 0:01:46]} (30... Rxe4 31. Qxe4 Qf6) 31. Re6 {[%emt 0:04:29] White threatens Qh7+ and mate.} ({Less strong is} 31. Rxf4 Qxf4 32. Qh7+ Kf7 $18) 31... Qf5 {[%emt 0:00:40] Inhibits Qh7+.} 32. Qxf5 {[%emt 0:00:08]} R4xf5 {[%emt 0:00:12]} 33. Bxf5 {[%emt 0:00:19]} Rxf5 {[%emt 0:00:04][%mdl 4096] Endgame KRR-KRN} 34. Re8+ {[%emt 0:01:48]} Kh7 {[%emt 0:00:08]} 35. Rc8 {[%emt 0:01:47]} Rf7 {[%emt 0:00:07]} 36. Re4 {[%emt 0:00:53]} Na5 {[%emt 0:00:53]} 37. Ra8 {[%emt 0:00:57]} Nxc4 {[%emt 0:00:12]} 38. Rxa4 {[%emt 0:00:05]} Nxb2 {[%emt 0:00:06]} 39. Rb4 {[%emt 0:00:05]} (39. Ra7 $18) 39... Nd3 $11 {[%emt 0:00:08]} 40. Rxb7 {[%emt 0:00:12]} Nf2+ {[%emt 0:00:56]} 41. Kg1 {[%emt 0:30:34]} Nxe4 {[%emt 0:30:04]} 42. fxe4 {[%emt 0:00:01] Threatening d5. KR-KR} Re7 {[%emt 0:01:44]} 43. e5 {[%emt 0:00:00]} dxe5 {[%emt 0:00:00]} 44. dxe5 {[%emt 0:00:00]} Rxe5 {[%emt 0:00:00]} 45. Rxc7 {[%emt 0:00:00]} Re2 {[%emt 0:00:00]} 46. Rc3 {[%emt 0:00:00]} (46. Ra7 $1 $14 {was preferrable.}) 46... Ra2 {[%emt 0:00:00] The position is equal.} 47. h3 {[%emt 0:00:00]} h5 {[%emt 0:00:00]} 48. h4 {[%emt 0:00:00]} g5 {[%emt 0:00:00]} 49. hxg5 {[%emt 0:00:00]} Kg6 {[%emt 0:00:00]} 50. Kh2 {[%emt 0:00:00]} Kxg5 {[%emt 0:00:00]} 51. Kg3 {[%emt 0:00:00]} Ra1 {[%emt 0:00:00]} 52. Kf3 {[%emt 0:00:00]} Rf1+ {[%emt 0:00:00]} 53. Kg3 {[%emt 0:00:00]} h4+ {[%emt 0:00:00]} 54. Kh2 {[%emt 0:00:00]} Ra1 {[%emt 0:00:00]} 55. Rb3 {[%emt 0:00:00]} Kh5 {[%emt 0:00:00]} 56. Rb5+ {[%emt 0:00:00]} Kg4 {[%emt 0:00:00]} 57. Rb4+ {[%emt 0:00:00]} Kg5 {[%emt 0:00:00]} 58. a4 {[%emt 0:06:36]} Ra3 {[%emt 0:00:00]} 59. Rb5+ {[%emt 0:02:23]} Kg4 {[%emt 0:00:00]} 60. Ra5 {[%emt 0:00:28]} h3 {[%emt 0:00:00]} 61. gxh3+ {[%emt 0:00:28]} Rxh3+ {[%emt 0:00:00]} 62. Kg2 {[%emt 0:00:02][%cal Oa5g5] Black must now prevent Rg5+!} Ra3 {[%emt 0:00:00]} 63. Kf2 {[%emt 0:00:26]} Kf4 {[%emt 0:00:00]} 64. Ke2 {[%emt 0:00:30]} Ke4 {[%emt 0:00:00]} 65. Ra8 {[%emt 0:02:33]} Ra2+ {[%emt 0:00:00]} 66. Kd1 {[%emt 0:00:04]} Kd3 {[%emt 0:00:00][%cal Ra2a1]} 67. Kc1 {[%emt 0:00:05]} Kc3 {[%emt 0:00:00][%cal Ra2a1]} 68. Kb1 {[%emt 0:00:06] Against Ra1+} Ra3 {[%emt 0:00:00]} 69. a5 {[%emt 0:00:20]} Kb4 {[%emt 0:00:00]} 70. a6 {[%emt 0:00:18] Hoping for a7.} Kb5 {[%emt 0:00:00]} 71. Rb8+ {[%emt 0:00:19]} Kc6 {[%emt 0:00:00]} 72. Ra8 {[%emt 0:00:29]} Kb6 {[%emt 0:00:00]} 73. a7 {[%emt 0:00:12]} Rxa7 {[%emt 0:00:00] Blacks defense is rewarded with a draw.  Weighted Error Value: White=0.42/Black=0.38} 1/2-1/2

[Event "26th Womens ECCC 2022"]
[Site "Mayrhofen"]
[Date "2022.10.07"]
[Round "5.30"]
[White "Schloffer, Jasmin-Denise"]
[Black "Peglau, Dora"]
[Result "1-0"]
[ECO "E42"]
[WhiteElo "2086"]
[BlackElo "1745"]
[Annotator "TA"]
[PlyCount "97"]
[EventDate "2022.10.03"]
[EventType "team-tourn"]
[EventCountry "AUT"]
[SourceTitle "playchess.com"]
[Source "ChessBase"]
[SourceQuality "1"]
[TimeControl "40/5400+30:1800+30"]

{[%evp 14,97,56,44,93,68,121,79,90,75,81,74,79,71,70,68,58,60,66,45,70,65,92,72,90,82,113,102,102,97,104,55,98,95,100,76,149,160,162,156,171,170,178,171,192,125,175,75,75,55,59,47,59,15,41,33,162,141,202,185,186,170,263,257,305,304,437,431,514,471,581,581,679,662,652,687,681,675,854,833,793,785,5718,3574,29983,5933]} 1. d4 {[%emt 0:00:03]} Nf6 {[%emt 0:00:13]} 2. c4 {[%emt 0:00:05]} e6 {[%emt 0:00:09]} 3. Nc3 {[%emt 0:00:04]} Bb4 {[%emt 0:00:08]} 4. e3 {[%emt 0:00:05]} c5 {[%emt 0:01:39]} 5. Nge2 {[%emt 0:02:24]} O-O {[%emt 0:04:32]} 6. a3 {[%emt 0:01:02]} Bxc3+ {[%emt 0:00:26]} 7. Nxc3 {[%emt 0:00:05]} d6 {[%emt 0:02:09]} 8. Be2 {[%emt 0:05:09]} Nbd7 {[%emt 0:03:32] E46: Nimzo-Indian: Rubinstein: 4 e3 0-0 5 Ne2 without early Bd3.} (8... Qe7 $14) 9. O-O {[%emt 0:01:08]} a6 {[%emt 0:03:19] [#]} (9... Qe7 $14) 10. b3 $146 {[%emt 0:03:32]} ({Predecessor:} 10. f4 Re8 11. e4 cxd4 12. Qxd4 e5 13. fxe5 dxe5 14. Qf2 Qe7 15. Bg5 Qe6 16. Kh1 {0-1 (43) Churyaev,A (1600)-Verich,O (1435) LSS email 2016}) 10... Qc7 {[%emt 0:01:22] White is better.} 11. Bb2 {[%emt 0:01:33]} b6 {[%emt 0:03:04]} 12. d5 {[%emt 0:09:01]} exd5 {[%emt 0:07:28]} 13. Nxd5 {[%emt 0:00:58]} Nxd5 {[%emt 0:01:54]} 14. Qxd5 {[%emt 0:03:13]} Bb7 {[%emt 0:00:22]} 15. Qg5 {[%emt 0:00:54][%csl Gb2][%cal Rg5g7] [#]} f6 {[%emt 0:02:55]} 16. Qg3 {[%emt 0:01:29]} Ne5 {[%emt 0:01:41]} 17. f4 $40 {[%emt 0:03:43][%mdl 128] White mounts an attack.} Nd7 {[%emt 0:06:10]} 18. Rad1 {[%emt 0:04:15]} Rf7 {[%emt 0:17:48]} 19. Bg4 {[%emt 0:03:39] And now Be6 would win. White has more active pieces.} Kh8 {[%emt 0:11:29]} 20. Rd2 {[%emt 0:11:23]} Nf8 {[%emt 0:02:14]} 21. Rfd1 {[%emt 0:01:03]} Rd8 {[%emt 0:00:22]} 22. h4 {[%emt 0:08:04]} (22. f5 $16) 22... Be4 {[%emt 0:03:17]} 23. f5 {[%emt 0:06:21]} Rfd7 {[%emt 0:02:26]} 24. Qf4 {[%emt 0:01:17]} Qc6 {[%emt 0:02:12]} (24... Qb7 $142) 25. Bf3 $16 {[%emt 0:03:01]} Bxf3 {[%emt 0:00:14]} 26. Qxf3 {[%emt 0:00:04]} ({Resist} 26. gxf3 $6 d5 $11) 26... Qxf3 {[%emt 0:02:58]} 27. gxf3 {[%emt 0:00:04]} Kg8 {[%emt 0:00:28]} 28. e4 {[%emt 0:02:27]} Kf7 {[%emt 0:00:06]} 29. Kf2 {[%emt 0:00:35]} (29. Rd5 $18) 29... g6 {[%emt 0:01:35]} (29... b5 $16 30. Bc1 Ke7) 30. fxg6+ {[%emt 0:00:42]} (30. Rd5 $18 {has better winning chances.}) 30... hxg6 {[%emt 0:04:56]} 31. Ke3 {[%emt 0:04:52]} Ke6 {[%emt 0:02:13]} 32. f4 {[%emt 0:05:08][%cal Oh4h5] Threatens to win with h5!} Rh7 {[%emt 0:06:21]} 33. Rh1 {[%emt 0:06:52]} (33. e5 $5) 33... Rdd7 {[%emt 0:01:13]} 34. f5+ {[%emt 0:02:37]} gxf5 {[%emt 0:00:41] This move loses the game for Black.} (34... Ke7 $1 $14) 35. exf5+ $18 {[%emt 0:00:05]} Kf7 {[%emt 0:01:00]} (35... Ke7 $16 36. Kf3 b5) 36. Kf4 {[%emt 0:01:03]} Rh6 {[%emt 0:02:20]} 37. Bc1 {[%emt 0:03:49]} Ke7 {[%emt 0:01:33]} (37... Rd8 $142 38. a4 Rh7) 38. Kg4 {[%emt 0:01:53] [#] Hoping for Re2+.} Rh7 {[%emt 0:01:44]} 39. h5 {[%emt 0:01:23][%cal Bh4h5,Bh5h6][%mdl 32]} Kd8 {[%emt 0:01:06]} (39... Kf7 $142 40. Rhd1 Rg7+ 41. Kf4 Ke7 42. Re2+ Kf7) 40. h6 {[%emt 0:01:15]} Kc7 {[%emt 0:00:27]} 41. Rd3 {[%emt 0:32:20]} ({Not} 41. Bb2 Rdf7 42. Re2 a5 $18) 41... Rd8 {[%emt 0:03:48]} 42. Bf4 {[%emt 0:00:00]} Kc6 {[%emt 0:01:56]} 43. Rd5 {[%emt 0:00:00]} Re7 {[%emt 0:05:54]} 44. Rhd1 {[%emt 0:00:00][%cal Rd5d6]} Red7 {[%emt 0:00:04]} 45. Kh5 {[%emt 0:00:00]} a5 {[%emt 0:01:55]} 46. a4 {[%emt 0:00:00]} Kc7 {[%emt 0:01:22]} 47. Rg1 {[%emt 0:00:00]} Re7 {[%emt 0:03:17]} 48. Rg7 {[%emt 0:00:00]} Red7 {[%emt 0:05:18]} 49. Bxd6+ {[%emt 0:00:00] Weighted Error Value: White=0.14 (very precise) /Black=0.45} (49. Rxd6 $142 Kb7 50. h7 Rxg7 51. h8=Q Rg5+ 52. Bxg5 Rxd6 53. Qxf8 Rc6 54. Qf7+ Rc7 55. Qd5+ Ka7 56. Qd8) 1-0

[Event "26th Womens ECCC 2022"]
[Site "Mayrhofen"]
[Date "2022.10.07"]
[Round "5.31"]
[White "Peglau, Mirjam"]
[Black "Konecny, Sophie"]
[Result "1-0"]
[ECO "E41"]
[WhiteElo "1886"]
[BlackElo "1848"]
[Annotator "NA RC COMBH"]
[PlyCount "119"]
[EventDate "2022.10.03"]
[EventType "team-tourn"]
[EventCountry "AUT"]
[SourceTitle "playchess.com"]
[Source "ChessBase"]
[SourceQuality "1"]
[TimeControl "40/5400+30:1800+30"]

1. d4 {[%emt 0:00:01]} Nf6 {[%emt 0:00:17]} 2. c4 {[%emt 0:00:02]} e6 {[%emt 0:00:13]} 3. Nc3 {[%emt 0:00:04]} Bb4 {[%emt 0:01:12]} 4. e3 {[%emt 0:00:45]} c5 {[%emt 0:01:00]} 5. Nf3 {[%emt 0:02:14]} d5 {[%emt 0:02:39]} 6. Bd2 {[%emt 0:01:14]} O-O {[%emt 0:04:28]} 7. Rc1 {[%emt 0:00:53]} b6 {[%emt 0:05:57]} 8. a3 {[%emt 0:06:58]} Bxc3 {[%emt 0:02:46]} 9. Bxc3 {[%emt 0:00:02]} Ba6 {[%emt 0:04:37]} 10. Qb3 {[%emt 0:17:04]} Nbd7 {[%emt 0:05:57]} 11. cxd5 {[%emt 0:06:49]} Bxf1 {[%emt 0:04:01]} 12. Kxf1 {[%emt 0:00:02]} Nxd5 {[%emt 0:03:37]} 13. Ke2 {[%emt 0:01:40]} Rc8 {[%emt 0:04:38]} 14. Rhd1 {[%emt 0:00:46]} Qe7 {[%emt 0:05:19]} 15. Kf1 {[%emt 0:04:35]} N7f6 {[%emt 0:04:48]} 16. Qa4 {[%emt 0:17:19]} Ne4 {[%emt 0:04:02]} 17. dxc5 {[%emt 0:02:04]} Ndxc3 {[%emt 0:07:47]} 18. bxc3 {[%emt 0:00:01]} Nxc5 {[%emt 0:00:18]} 19. Qb4 {[%emt 0:00:02]} e5 {[%emt 0:09:08]} 20. e4 {[%emt 0:12:58]} Qe6 {[%emt 0:05:41]} 21. Rd5 {[%emt 0:02:35]} f6 {[%emt 0:02:21]} 22. h3 {[%emt 0:01:28]} Qc6 {[%emt 0:02:59]} 23. Kg1 {[%emt 0:10:02]} Kh8 {[%emt 0:06:20]} 24. Kf1 {[%emt 0:02:24]} a5 {[%emt 0:03:18]} 25. Qc4 {[%emt 0:00:51]} b5 {[%emt 0:01:40]} 26. Qe2 {[%emt 0:00:25]} Nb3 {[%emt 0:01:13]} 27. Rb1 {[%emt 0:02:52]} Qxc3 {[%emt 0:00:59]} 28. Rxb5 {[%emt 0:00:22]} Nd4 {[%emt 0:04:13]} 29. Nxd4 {[%emt 0:00:14]} exd4 30. R5b3 {[%emt 0:01:31]} Qc5 {[%emt 0:02:00]} 31. Qb5 {[%emt 0:02:44]} Qc2 {[%emt 0:01:02]} 32. Qd3 {[%emt 0:01:12]} a4 {[%emt 0:01:17]} 33. Qxc2 {[%emt 0:01:21]} Rxc2 {[%emt 0:00:02]} 34. Rd3 {[%emt 0:02:51]} Rc4 {[%emt 0:00:53]} 35. Rbd1 {[%emt 0:00:41]} Rd8 {[%emt 0:00:17]} 36. f4 {[%emt 0:00:38]} Kg8 {[%emt 0:00:20]} 37. Ke2 {[%emt 0:00:13]} Kf7 {[%emt 0:00:29]} 38. Kd2 {[%emt 0:00:44]} Rdc8 {[%emt 0:00:42]} 39. Ke2 {[%emt 0:00:15]} Rd8 {[%emt 0:00:21]} 40. Rb1 {[%emt 0:00:21]} Re8 {[%emt 0:00:53]} 41. Kf3 {[%emt 0:01:49]} Rec8 {[%emt 0:03:13]} 42. Rb7+ {[%emt 0:07:12]} Kg6 {[%emt 0:03:10]} 43. Rd7 {[%emt 0:00:20]} Rb8 {[%emt 0:01:42]} 44. f5+ {[%emt 0:10:05]} Kh6 {[%emt 0:00:34]} 45. R7xd4 {[%emt 0:01:50]} Rxd4 {[%emt 0:01:05]} 46. Rxd4 {[%emt 0:00:01]} Rb3+ {[%emt 0:00:13]} 47. Kg4 {[%emt 0:02:01]} Rxa3 {[%emt 0:01:09]} 48. Rd6 {[%emt 0:01:32]} Ra1 {[%emt 0:10:14]} 49. e5 {[%emt 0:00:56]} a3 {[%emt 0:01:10]} 50. exf6 {[%emt 0:03:11]} gxf6 {[%emt 0:00:53]} 51. Rxf6+ {[%emt 0:00:02]} Kg7 {[%emt 0:00:10]} 52. Ra6 {[%emt 0:00:16]} a2 {[%emt 0:02:06]} 53. Kg5 {[%emt 0:03:05]} h6+ {[%emt 0:02:06]} 54. Kg4 {[%emt 0:01:37]} Kf7 {[%emt 0:01:55]} 55. Kh5 {[%emt 0:01:29]} Kg7 {[%emt 0:01:42]} 56. f6+ {[%emt 0:01:09]} Kf7 {[%emt 0:01:27]} 57. Kxh6 {[%emt 0:00:10]} Re1 {[%emt 0:01:35]} 58. Rxa2 {[%emt 0:00:18]} Kxf6 {[%emt 0:00:06]} 59. Rf2+ {[%emt 0:00:14]} Ke7 {[%emt 0:00:48]} 60. h4 {[%emt 0:00:49]} 1-0

[Event "26th Womens ECCC 2022"]
[Site "Mayrhofen"]
[Date "2022.10.07"]
[Round "5.32"]
[White "Wu, Min"]
[Black "Peglau, Sarah"]
[Result "1-0"]
[ECO "C07"]
[WhiteElo "1934"]
[BlackElo "1794"]
[Annotator "TA"]
[PlyCount "79"]
[EventDate "2022.10.03"]
[EventType "team-tourn"]
[EventCountry "AUT"]
[SourceTitle "playchess.com"]
[Source "ChessBase"]
[SourceQuality "1"]
[TimeControl "40/5400+30:1800+30"]

{[%evp 12,79,-2,0,11,-7,2,0,0,-17,4,0,0,0,193,175,176,176,191,200,181,168,182,176,196,177,214,208,217,218,208,208,254,257,504,486,506,486,847,340,318,267,251,239,497,252,390,386,370,364,306,80,89,50,105,46,62,1,50,0,0,0,0,0,445,393,862,847,664,549]} 1. e4 {[%emt 0:00:04]} e6 {[%emt 0:00:05]} 2. d4 {[%emt 0:00:21]} d5 {[%emt 0:00:05]} 3. Nd2 {[%emt 0:00:05]} c5 {[%emt 0:00:06]} 4. Ngf3 {[%emt 0:00:51]} cxd4 {[%emt 0:00:23]} 5. Nxd4 {[%emt 0:06:44]} Nc6 {[%emt 0:00:12]} 6. Nxc6 {[%emt 0:06:54]} bxc6 {[%emt 0:00:04]} 7. Bd3 {[%emt 0:01:49]} Bd6 {[%emt 0:04:32] C07: French Tarrasch: 3...c5, 4 Ngf3 and 4 exd5 Qxd5.} 8. O-O {[%emt 0:05:56] The main line 8.0-0 scores better than 8.Qe2.} Qc7 {[%emt 0:02:36]} 9. h3 {[%emt 0:09:04]} Nf6 {[%emt 0:03:01] The position is equal.} 10. c4 {[%emt 0:05:25]} d4 {[%emt 0:07:18] [#]} 11. e5 $146 {[%emt 0:14:39]} ({Predecessor:} 11. Nb3 e5 12. c5 Be7 13. f4 Be6 14. fxe5 Nd7 15. Bf4 O-O 16. Rc1 Rad8 17. Qh5 {½-½ (59) Caruana,F (2598)-Hou,Y (2527) Moscow 2008}) 11... Bxe5 {[%emt 0:00:57]} 12. Nf3 {[%emt 0:00:05]} c5 $2 {[%emt 0:07:55]} (12... Bb7 $11 {and Black is okay.}) 13. Nxe5 $18 {[%emt 0:01:13]} Qxe5 {[%emt 0:00:02] [#]} 14. Qf3 {[%emt 0:00:17] Inhibits Bb7.} Qb8 {[%emt 0:01:48]} 15. Qc6+ {[%emt 0:02:00]} Bd7 {[%emt 0:14:50]} 16. Qxc5 {[%emt 0:02:28]} Qb6 {[%emt 0:00:20]} 17. Qe5 {[%emt 0:17:04]} O-O {[%emt 0:05:54]} 18. Bg5 {[%emt 0:04:30] And now Rfe1 would win.} Qd8 {[%emt 0:16:23]} 19. Qxd4 {[%emt 0:02:02] Strongly threatening Rad1.} Bc6 {[%emt 0:01:40]} 20. Qc3 {[%emt 0:02:58]} h6 {[%emt 0:10:24]} 21. Bh4 {[%emt 0:02:13]} g5 {[%emt 0:03:21]} 22. Bg3 {[%emt 0:00:24]} Ne4 $2 {[%emt 0:01:50]} (22... Qe7 23. Bc2 Rfd8) 23. Bxe4 {[%emt 0:01:10]} Bxe4 {[%emt 0:00:01]} 24. Rad1 {[%emt 0:00:33]} Qb6 {[%emt 0:00:52]} (24... Qe7 $142 25. Rfe1 Bc6) 25. c5 {[%emt 0:06:03]} (25. Qf6 $142 {Be5 would kill now.} e5 26. Rd6 Qxd6 27. Qxd6) 25... Qb7 {[%emt 0:01:07]} 26. Qf6 {[%emt 0:01:01] [#] Intending Be5 and mate.} Kh7 {[%emt 0:01:04]} 27. f3 {[%emt 0:03:14] aiming for Be5.} (27. Be5 Rg8 28. f3 Rg6 29. fxe4 Rxf6 30. Rxf6 Rf8 $11) 27... Bg6 $2 {[%emt 0:00:36]} (27... Bc6 {was worth a try.} 28. Rd6 (28. Be5 Rg8 $18) 28... Rac8) 28. f4 {[%emt 0:01:24]} ({Don't take} 28. Be5 Rg8 29. Rd6 Rae8) (28. Rd6 $142) 28... Qe4 {[%emt 0:02:22]} (28... Qb5 $142 29. Rc1 (29. fxg5 Qxc5+ 30. Kh2 Qxg5 $14) 29... Rac8) 29. fxg5 {[%emt 0:02:29]} Qe3+ {[%emt 0:00:02]} 30. Kh2 {[%emt 0:00:36]} Qxg5 {[%emt 0:02:00]} 31. Bh4 $2 {[%emt 0:01:39]} (31. Qc3 $18 {is more deadly.}) 31... Qxc5 $16 {[%emt 0:00:55]} 32. Rfe1 {[%emt 0:00:28][%cal Oe1e6]} Rg8 {[%emt 0:04:24]} ({Black should play} 32... Qf5 $14) 33. Re5 {[%emt 0:00:33]} (33. Rd7 $16) 33... Qc2 {[%emt 0:00:25]} 34. Rg1 {[%emt 0:00:34] White is more active.} (34. Rd7 $1 $14) 34... Rab8 {[%emt 0:01:54]} (34... Raf8 $11) 35. b3 {[%emt 0:00:27]} (35. Bg3 $1 $14) 35... Qxa2 $11 {[%emt 0:00:15]} 36. Bf2 {[%emt 0:00:29]} Qxb3 {[%emt 0:04:33]} 37. Be3 {[%emt 0:00:24] Hoping for Ra1.} Rb5 $2 {[%emt 0:00:20][%mdl 8192]} (37... Qa3 $11 {and Black stays safe.}) 38. Qh4 $18 {[%emt 0:00:30][%csl Ge3][%cal Rh4h6]} ({Not} 38. Qf4 Rh8 $18) 38... Bh5 $2 {[%emt 0:04:15]} (38... Rg7 39. Rc1 h5) 39. Qxh5 {[%emt 0:00:39][%csl Ge3][%cal Rh5h6]} Rg6 {[%emt 0:00:02]} 40. Rxb5 {[%emt 0:00:38] Weighted Error Value: White=0.42/Black=0.69} 1-0

[Event "26th Womens ECCC 2022"]
[Site "Mayrhofen"]
[Date "2022.10.08"]
[Round "6.1"]
[White "Bulmaga, Irina"]
[Black "Muzychuk, Anna"]
[Result "1/2-1/2"]
[ECO "C45"]
[WhiteElo "2417"]
[BlackElo "2534"]
[Annotator "TA"]
[PlyCount "56"]
[EventDate "2022.10.03"]
[EventType "team-tourn"]
[EventCountry "AUT"]
[SourceTitle "playchess.com"]
[Source "ChessBase"]
[SourceQuality "1"]
[TimeControl "40/5400+30:1800+30"]

{[%evp 24,56,0,0,0,0,0,0,0,0,0,0,0,-29,-30,-39,-25,-35,-21,-28,12,-30,0,0,0,0,0,0,0,0,0,0,0,0,0]} 1. e4 {[%emt 0:00:04]} e5 {[%emt 0:00:07]} 2. Nf3 {[%emt 0:00:07]} Nc6 {[%emt 0:00:07]} 3. d4 {[%emt 0:00:08]} exd4 {[%emt 0:00:06]} 4. Nxd4 {[%emt 0:00:07]} Nf6 {[%emt 0:00:16]} 5. Nxc6 {[%emt 0:00:23]} bxc6 {[%emt 0:00:08]} 6. e5 {[%emt 0:00:45]} Qe7 {[%emt 0:00:28]} 7. Qe2 {[%emt 0:00:10]} Nd5 {[%emt 0:00:09]} 8. c4 {[%emt 0:00:22]} Ba6 {[%emt 0:00:30]} 9. b3 {[%emt 0:00:40]} g6 {[%emt 0:00:34]} 10. Bb2 {[%emt 0:00:48]} Bg7 {[%emt 0:03:39]} 11. g3 {[%emt 0:00:33]} O-O {[%emt 0:01:41]} 12. Bg2 {[%emt 0:00:22]} Rae8 {[%emt 0:00:46]} 13. O-O $1 {[%emt 0:00:43]} Bxe5 {[%emt 0:00:37] C45: Scotch Game.} 14. Qxe5 {[%emt 0:00:44]} Qxe5 {[%emt 0:00:06]} 15. Bxe5 {[%emt 0:00:06]} Rxe5 {[%emt 0:00:02]} 16. cxd5 {[%emt 0:00:33] [#] And now Rd1 would win.} Bxf1 {[%emt 0:00:04]} 17. Kxf1 {[%emt 0:00:15]} cxd5 {[%emt 0:00:02]} 18. Na3 {[%emt 0:05:04]} (18. f4 $5 {[%cal Rf4e5]} Re3 19. Bxd5 $11) 18... c6 {[%emt 0:03:44]} 19. Rd1 {[%emt 0:04:32]} Rfe8 {[%emt 0:04:23] Hoping for ...Re2.} 20. Bf3 {[%emt 0:02:02] Inhibits Re2.} Kf8 {[%emt 0:02:56]} 21. Nc2 {[%emt 0:05:18]} Ke7 {[%emt 0:05:50] [#]} 22. Ne3 $146 {[%emt 0:04:05][%mdl 1024] White has compensation.} ({Predecessor:} 22. Rd4 Kd6 23. Rh4 h5 24. Ra4 Ra8 25. Ne1 Ree8 26. Nd3 a5 27. h4 Kc7 28. Rf4 Re7 29. Ra4 Ree8 30. Rf4 Re7 31. Ra4 Ree8 32. Rf4 {½-½ (32) Salgado Lopez,I (2644)-Kryvoruchko,Y (2689) Riadh 2017}) 22... Kd8 {[%emt 0:03:48]} 23. Rd4 {[%emt 0:08:33] The position is equal.} Kc7 {[%emt 0:01:47]} 24. Ra4 {[%emt 0:05:50]} Kb6 {[%emt 0:06:51]} 25. Rb4+ {[%emt 0:00:47]} Kc7 {[%emt 0:00:18]} 26. Ra4 {[%emt 0:01:43]} Kb6 {[%emt 0:00:06]} 27. Rb4+ {[%emt 0:02:12]} Kc7 {[%emt 0:00:02]} 28. Ra4 {[%emt 0:01:16]} Kb6 {[%emt 0:00:03] Weighted Error Value: White=0.05 (flawless) /Black=0.09 (flawless)} 1/2-1/2